[Event "5th Baskent University Open 2022"]
[Site "Ankara"]
[Date "2022.07.04"]
[Round "4.3"]
[White "Makaraci, Tunahan"]
[Black "Atabayev, Saparmyrat"]
[Result "0-1"]
[ECO "C56"]
[WhiteElo "2130"]
[BlackElo "2447"]
[Annotator "TA"]
[PlyCount "66"]
[EventDate "2022.07.02"]
[EventType "swiss"]
[EventCountry "TUR"]
[SourceTitle "playchess.com"]
[Source "ChessBase"]
[SourceQuality "1"]
[TimeControl "5400+30"]

{[%evp 20,66,2,0,87,-30,-20,-36,-23,-25,7,11,31,20,21,-170,-144,-168,-148,-328,-329,-317,-320,-321,-310,-256,-269,-402,-381,-493,-496,-585,-563,-590,-587,-580,-572,-572,-577,-566,-556,-554,-548,-846,-854,-830,-778,-669,-536]} 1. e4 {[%emt 0:01:00]} e5 {[%emt 0:02:00]} 2. Nf3 {[%emt 0:00:30]} Nc6 {[%emt 0:00:30]} 3. Bc4 {[%emt 0:00:30]} Nf6 {[%emt 0:00:00][%cal Bg8f6,Bf6e4,Be4g5,Bg5e6][%mdl 32]} 4. d4 {[%emt 0:00:00]} exd4 {[%emt 0:00:00]} 5. e5 {[%emt 0:00:00]} d5 {[%emt 0:00:30]} 6. Bb5 {[%emt 0:00:00]} Ne4 {[%emt 0:00:30]} 7. Nxd4 {[%emt 0:00:00]} Bd7 {[%emt 0:00:00]} 8. Bxc6 {[%emt 0:00:30]} bxc6 {[%emt 0:01:00]} 9. O-O {[%emt 0:00:30]} Bc5 {[%emt 0:01:30]} 10. f3 {[%emt 0:02:30]} Ng5 {[%emt 0:00:30]} 11. f4 {[%emt 0:00:30] The main line 11.f4 scores better than 11.Be3.} Bg4 {[%emt 0:19:30] C56: Two Knights: 4 d4 exd4 5 0-0 Nxe4.} 12. Qd3 {[%emt 0:11:30] [#]} (12. Qxg4 $16 Bxd4+ 13. Kh1) 12... Bf5 $1 $11 {[%emt 0:01:30] This bishop pair is nice.} 13. Qe3 {[%emt 0:10:30] [#]} (13. Qxf5 Bxd4+ 14. Kh1 Ne4 $17) 13... Ne6 $146 {[%emt 0:03:30] Black is slightly better.} ({Predecessor:} 13... Ne4 14. c3 O-O 15. Nd2 Qe7 16. Kh1 Qd7 17. Nxe4 Bxe4 18. Qg3 Bxd4 19. cxd4 f5 {0-1 (46) Fuentes,R (2217)-Rumph,T (2188) San Francisco 2012}) 14. c3 {[%emt 0:00:00][%cal Bc2c3,Bc3d4,Bd4c5][%mdl 32]} Bxd4 {[%emt 0:01:30]} 15. cxd4 {[%emt 0:00:00]} c5 {[%emt 0:00:30]} 16. dxc5 {[%emt 0:01:30][%cal Og2g4]} O-O {[%emt 0:00:30]} 17. g4 $2 {[%emt 0:06:30]} (17. h3 $11 {and White stays safe.}) 17... Bxg4 $19 {[%emt 0:08:30]} 18. f5 {[%emt 0:00:00] [#]} Qh4 $36 {[%emt 0:00:00][%cal Og4h3][%mdl 2048] Black is really pushing.} ({But not} 18... d4 19. Qg3 Be2 20. Rf2 $16) 19. fxe6 $2 {[%emt 0:08:00] This move loses the game for White.} (19. Qf2 $17 Qxf2+ 20. Rxf2 Nxc5 21. f6) 19... fxe6 {[%emt 0:00:00] And now ...Rxf1+ would win.} 20. Qg3 {[%emt 0:18:30]} Rxf1+ {[%emt 0:11:30]} 21. Kxf1 {[%emt 0:00:00]} Rf8+ {[%emt 0:00:30]} 22. Ke1 {[%emt 0:01:00] [#]} Qh5 {[%emt 0:00:30] Hoping for ...Rf3. Chess con chili.} 23. h3 {[%emt 0:09:30]} (23. Bf4 {was the only defense.} Qf5 24. Nd2 Qxf4 25. Qxf4 Rxf4 26. Nf1) 23... Be2 {[%emt 0:10:30]} 24. Nc3 {[%emt 0:02:30]} Ba6 {[%emt 0:01:30] Black is clearly winning.} (24... Rf1+ $2 25. Kd2 Bc4 26. b3 $19) 25. Bf4 {[%emt 0:07:30]} d4 {[%emt 0:01:30]} ({Weaker is} 25... Qf7 26. Ne2 $17 (26. Qg4 $2 h5 $19)) 26. Kd2 {[%emt 0:03:17][%cal Oa1g1]} dxc3+ {[%emt 0:00:30]} 27. Kxc3 {[%emt 0:00:55]} Qe2 {[%emt 0:00:30]} 28. b3 {[%emt 0:00:46] Against Qc4+} Rd8 {[%emt 0:07:30][%cal Bf8d8,Bd8d3,Bd3d4,Bd4f4][%mdl 32] Strongly threatening ...Rd3+.} 29. Qg4 {[%emt 0:01:49]} Rd3+ {[%emt 0:00:30]} 30. Kb4 {[%emt 0:00:30]} Rd4+ {[%emt 0:00:30]} 31. Ka3 {[%emt 0:01:14]} Qxg4 {[%emt 0:00:30]} 32. hxg4 {[%emt 0:00:30]} Rxf4 {[%emt 0:00:30]} 33. Rd1 {[%emt 0:00:30]} Bb5 {[%emt 0:00:00] Weighted Error Value: White=0.74/Black=0.07 (flawless)} 0-1

[Event "5th Baskent University Open 2022"]
[Site "Ankara"]
[Date "2022.07.04"]
[Round "4.4"]
[White "Bekiragaoglu, Umut"]
[Black "Gunduz, Umut Erdem"]
[Result "0-1"]
[ECO "B67"]
[WhiteElo "2067"]
[BlackElo "2368"]
[Annotator "TA"]
[PlyCount "78"]
[EventDate "2022.07.02"]
[EventType "swiss"]
[EventCountry "TUR"]
[SourceTitle "playchess.com"]
[Source "ChessBase"]
[SourceQuality "1"]
[TimeControl "5400+30"]

{[%evp 18,78,36,35,39,14,25,18,25,-60,-42,-60,-15,-36,4,-60,-81,-114,-120,-116,-118,-351,-327,-330,-232,-281,-295,-671,-675,-622,-433,-441,-309,-303,-290,-311,-296,-292,-325,-310,-282,-347,-226,-265,-285,-760,-691,-29990,-749,-1194,-1191,-1147,-288,-288,-281,-282,-270,-250,-251,-328,-260,-255,-155]} 1. e4 {[%emt 0:01:00]} c5 {[%emt 0:02:00]} 2. Nf3 {[%emt 0:01:30]} d6 {[%emt 0:00:30]} 3. d4 {[%emt 0:00:00]} cxd4 {[%emt 0:00:30]} 4. Nxd4 {[%emt 0:00:00]} Nf6 {[%emt 0:00:00]} 5. Nc3 {[%emt 0:00:30]} Nc6 {[%emt 0:00:00]} 6. Bg5 {[%emt 0:02:30]} e6 {[%emt 0:00:30]} 7. Qd2 {[%emt 0:01:30]} a6 {[%emt 0:00:00]} 8. O-O-O {[%emt 0:01:30]} Bd7 {[%emt 0:01:00]} 9. f4 {[%emt 0:01:30]} h6 {[%emt 0:02:30]} 10. Bh4 {[%emt 0:03:30]} Be7 {[%emt 0:03:30] 10...b5 gains popularity. B67: Sicilian: Richter-Rauzer: 7...a6 8 0-0-0 Bd7, lines without 9 f4 Be7.} 11. Be2 {[%emt 0:10:30]} Rc8 {[%emt 0:07:30]} 12. Bf3 {[%emt 0:03:30]} b5 {[%emt 0:06:30][%cal Bb7b5,Bb5b4][%mdl 32] The position is equal.} 13. Bg3 {[%emt 0:20:30]} ({Better is} 13. Nxc6 $11 Bxc6 14. Bxf6 Bxf6 15. Qxd6) 13... b4 $15 {[%emt 0:12:30]} 14. Nce2 {[%emt 0:01:30] [#]} Qa5 $146 {[%emt 0:02:30]} ({Predecessor:} 14... O-O 15. Kb1 Qc7 16. c4 e5 17. Nc2 Rfe8 18. Ne3 Qb8 19. Rhe1 a5 20. Nd5 Nxd5 21. exd5 Bf5+ 22. Ka1 Nd4 23. Nxd4 {½-½ (23) Dahm,W (2118)-Almarza Mato,C (2151) ICCF email 2016}) 15. Kb1 {[%emt 0:01:30]} e5 {[%emt 0:00:30]} 16. fxe5 {[%emt 0:06:30]} (16. Nxc6 $1 $11 Bxc6 17. Rhe1) 16... dxe5 {[%emt 0:00:30]} 17. Nf5 {[%emt 0:06:30]} Bxf5 $40 {[%emt 0:05:30][%mdl 128] Black goes for the king.} 18. exf5 {[%emt 0:01:30]} O-O {[%emt 0:00:30] aiming for ...e4.} 19. Qe3 {[%emt 0:05:30] Inhibits e4.} (19. Nc1 $17) 19... Bc5 $19 {[%emt 0:02:30][%cal Be7c5,Bc5d4,Bd4e5][%mdl 32]} 20. Qd3 {[%emt 0:01:30]} b3 {[%emt 0:01:30]} 21. Qxb3 {[%emt 0:04:30]} e4 {[%emt 0:01:30]} 22. Nc3 $2 {[%emt 0:03:30]} (22. Nc1 exf3 23. Qxf3) 22... exf3 {[%emt 0:00:30]} 23. gxf3 {[%emt 0:00:30]} Bd4 {[%emt 0:02:30]} 24. Ne4 {[%emt 0:02:15]} Nxe4 {[%emt 0:11:30]} 25. fxe4 {[%emt 0:00:12]} Be5 {[%emt 0:07:30] Strongly threatening ...Rb8.} 26. Rd5 {[%emt 0:01:58]} Qc7 {[%emt 0:00:00]} 27. f6 {[%emt 0:00:41]} g6 {[%emt 0:03:00]} (27... gxf6 $2 28. Rf1 $19) 28. Qe3 {[%emt 0:02:04]} Kh7 {[%emt 0:02:30]} 29. Qc5 {[%emt 0:00:17][%cal Rg3e5] [#]} Qb8 {[%emt 0:02:30][%csl Ge5][%cal Rb8b2]} 30. b3 {[%emt 0:02:44]} (30. Rxe5 Nxe5) 30... Nb4 {[%emt 0:06:28]} (30... Bxg3 31. hxg3 Qa7 32. Rdh5 gxh5 33. Qf5+ Kh8 34. Qf4 $11) 31. Qe7 {[%emt 0:00:51]} (31. Bxe5 Rxc5 32. Bxb8 Nxd5 33. Bd6 Nc3+ 34. Kb2) 31... Nxd5 {[%emt 0:01:46]} 32. Qc5 {[%emt 0:00:30]} Nb4 {[%emt 0:00:30]} 33. Bxe5 {[%emt 0:00:30]} Rxc5 {[%emt 0:00:30]} 34. Bxb8 {[%emt 0:00:30]} Nd5 $2 {[%emt 0:00:13]} (34... Rxb8 35. Rc1 Re8) 35. Bd6 {[%emt 0:00:35]} Nc3+ {[%emt 0:00:30]} 36. Kb2 {[%emt 0:00:30]} Rfc8 {[%emt 0:00:30]} 37. Bxc5 {[%emt 0:00:30]} Rxc5 {[%emt 0:00:30]} 38. Re1 {[%emt 0:00:30]} a5 {[%emt 0:00:30][%cal Oc3a2] ...Nxa2! is the strong threat.} 39. e5 {[%emt 0:00:30]} Kg8 {[%emt 0:00:30] White did not feel at home in the position after the opening.  Weighted Error Value: White=1.04/Black=0.81} 0-1

[Event "5th Baskent University Open 2022"]
[Site "Ankara"]
[Date "2022.07.04"]
[Round "4.5"]
[White "Eynullayev, Atilla"]
[Black "Koksal, Ege"]
[Result "1/2-1/2"]
[ECO "C43"]
[WhiteElo "2333"]
[BlackElo "2356"]
[Annotator "TA"]
[PlyCount "89"]
[EventDate "2022.07.02"]
[EventType "swiss"]
[EventCountry "TUR"]
[SourceTitle "playchess.com"]
[Source "ChessBase"]
[SourceQuality "1"]
[TimeControl "5400+30"]

{[%evp 10,89,34,37,45,43,40,32,43,38,65,52,58,62,106,113,117,111,177,116,118,112,122,131,175,173,173,174,179,179,175,172,198,150,150,157,166,160,229,99,113,144,130,132,102,114,86,27,77,40,36,39,47,45,45,42,88,88,124,125,129,140,125,35,35,7,8,0,0,0,5,0,0,0,0,0,0,0,65,0,0,0]} 1. e4 {[%emt 0:01:00]} e5 {[%emt 0:01:00]} 2. Nf3 {[%emt 0:00:00]} Nf6 {[%emt 0:00:30]} 3. d4 {[%emt 0:00:00]} Nxe4 {[%emt 0:00:30]} 4. Bd3 {[%emt 0:00:00]} d5 {[%emt 0:00:30]} 5. Nxe5 {[%emt 0:00:00]} Be7 {[%emt 0:05:30]} 6. Nd2 {[%emt 0:00:30]} Nxd2 {[%emt 0:01:30] C43: Petroff Defence: 3 d4.} 7. Bxd2 {[%emt 0:00:00]} (7. Kxd2 Be6 $11) 7... Nd7 {[%emt 0:08:30]} 8. O-O {[%emt 0:01:00]} O-O {[%emt 0:08:30] [#] White is slightly better.} 9. c3 $146 {[%emt 0:00:30][%mdl 128] White mounts an attack.} ({Predecessor:} 9. Nxd7 Bxd7 10. Re1 c6 11. Qh5 g6 12. Qf3 {½-½ (12) Alekseev,E (2609)-Moiseenko,A (2625) Geneve 2004}) 9... g6 {[%emt 0:05:30]} 10. Bh6 {[%emt 0:07:30]} Re8 {[%emt 0:00:00]} 11. f4 {[%emt 0:00:30][%cal Oe5f7] Threatens to win with Nxf7!} Bf8 {[%emt 0:05:00]} 12. Bxf8 {[%emt 0:05:30]} Kxf8 {[%emt 0:10:30]} 13. Qf3 {[%emt 0:29:30] Black must now prevent f5. White is much more active.} ({Don't take} 13. Qb3 c6 $14) 13... Kg7 {[%emt 0:22:30]} (13... Nxe5 $16 14. fxe5 Be6) 14. Qxd5 {[%emt 0:16:30]} (14. f5 $18) 14... Nxe5 $16 {[%emt 0:00:30]} 15. Qxd8 {[%emt 0:00:30]} Rxd8 {[%emt 0:00:30]} 16. fxe5 {[%emt 0:00:30]} c5 {[%emt 0:00:00]} 17. Bc4 {[%emt 0:00:00]} Be6 {[%emt 0:00:00]} 18. Bxe6 {[%emt 0:01:00]} fxe6 {[%emt 0:00:00]} 19. dxc5 $18 {[%emt 0:05:30][%mdl 4096] Endgame KRR-KRR} Rd2 {[%emt 0:00:00]} 20. Rf2 {[%emt 0:01:30]} Rad8 {[%emt 0:00:00]} 21. b4 {[%emt 0:01:30]} ({Better is} 21. Rxd2 $18 Rxd2 22. b4) 21... R2d3 $16 {[%emt 0:02:00]} 22. Rc1 {[%emt 0:05:30]} Re3 {[%emt 0:00:00]} 23. Kf1 {[%emt 0:01:30]} ({But not} 23. Rcf1 $6 Rd7 $16) 23... Rdd3 {[%emt 0:02:00]} (23... g5 $16 {was necessary.} 24. Re2 Rf8+ 25. Ke1 Rd3) 24. Re2 {[%emt 0:05:58]} (24. Re1 $18 {and White stays clearly on top.}) 24... Rxc3 {[%emt 0:00:30]} 25. Rd1 {[%emt 0:04:57]} Red3 {[%emt 0:07:30] [#]} 26. Rxd3 {[%emt 0:03:11]} Rxd3 {[%emt 0:00:30] KR-KR} 27. Rc2 {[%emt 0:01:51]} Kf7 {[%emt 0:10:45]} 28. Ke2 {[%emt 0:03:52]} ({White should try} 28. b5 $16) 28... Rd5 {[%emt 0:00:30]} (28... Ra3 $1 $11 {remains equal.}) 29. Ke3 {[%emt 0:00:30] aiming for Ke4.} Rxe5+ {[%emt 0:00:00]} 30. Kd4 {[%emt 0:01:18]} Rd5+ {[%emt 0:00:21]} 31. Kc4 {[%emt 0:00:05]} Ke7 {[%emt 0:00:08]} 32. a4 {[%emt 0:00:18][%cal Ba2a4,Ba4b5][%mdl 32]} a6 {[%emt 0:02:49]} (32... Rd1 $14) 33. b5 {[%emt 0:01:03]} axb5+ {[%emt 0:00:02]} 34. axb5 {[%emt 0:02:32]} Rd1 {[%emt 0:00:36]} 35. Ra2 {[%emt 0:00:45] [#] Hoping for Ra7.} ({Of course not} 35. c6 $6 bxc6 36. b6 Kd7 $11) 35... Kd7 {[%emt 0:07:54]} 36. Ra3 {[%emt 0:00:18]} (36. Rf2 $16) 36... Kc7 $1 $14 {[%emt 0:00:05]} 37. Rh3 {[%emt 0:00:54]} h5 {[%emt 0:00:23]} 38. Rg3 {[%emt 0:01:00]} Rc1+ {[%emt 0:00:02]} 39. Kd4 {[%emt 0:00:30]} Rd1+ {[%emt 0:00:02]} 40. Rd3 {[%emt 0:00:29]} Rb1 {[%emt 0:01:05]} 41. Kc4 {[%emt 0:00:27]} Rc1+ {[%emt 0:00:38]} 42. Rc3 {[%emt 0:00:06]} Rg1 {[%emt 0:00:27]} 43. Rc2 {[%emt 0:00:30]} Rd1 {[%emt 0:00:27]} (43... g5 $11) 44. Rc3 {[%emt 0:00:38]} (44. Re2 $14) 44... Rg1 $11 {[%emt 0:00:06]} 45. Rc2 {[%emt 0:00:29] Black escapes into a draw.  Weighted Error Value: White=0.17 (very precise) /Black=0.16 (very precise)} 1/2-1/2

[Event "5th Baskent University Open 2022"]
[Site "Ankara"]
[Date "2022.07.04"]
[Round "4.6"]
[White "Zor, Alber Kadir"]
[Black "Huseyinoglu, Alihan"]
[Result "0-1"]
[ECO "A36"]
[WhiteElo "2116"]
[BlackElo "2213"]
[Annotator "RC"]
[PlyCount "108"]
[EventDate "2022.07.02"]
[EventType "swiss"]
[EventCountry "TUR"]
[SourceTitle "playchess.com"]
[Source "ChessBase"]
[SourceQuality "1"]
[TimeControl "5400+30"]

1. Nf3 {[%emt 0:01:00]} c5 {[%emt 0:03:00]} 2. g3 {[%emt 0:00:00]} Nc6 {[%emt 0:01:30]} 3. Bg2 {[%emt 0:08:00]} g6 {[%emt 0:01:30]} 4. c4 {[%emt 0:00:30]} Bg7 {[%emt 0:00:30]} 5. Nc3 {[%emt 0:00:00]} d6 {[%emt 0:05:30]} 6. O-O {[%emt 0:01:00]} e6 {[%emt 0:04:30]} 7. a3 {[%emt 0:10:30]} Nge7 {[%emt 0:02:30]} 8. b4 {[%emt 0:00:30]} O-O {[%emt 0:03:30]} 9. Rb1 {[%emt 0:03:30]} b6 {[%emt 0:05:30]} 10. e3 {[%emt 0:08:30]} d5 {[%emt 0:10:30]} 11. cxd5 {[%emt 0:06:30]} exd5 {[%emt 0:00:30]} 12. bxc5 {[%emt 0:25:30]} bxc5 {[%emt 0:09:30]} 13. Qa4 {[%emt 0:04:30]} Bd7 {[%emt 0:23:30]} 14. Qb5 {[%emt 0:03:30]} Bf5 {[%emt 0:05:30]} 15. Qxc5 {[%emt 0:05:58]} Bxb1 {[%emt 0:05:01]} 16. Nxb1 {[%emt 0:00:12]} Qd7 {[%emt 0:03:49]} 17. a4 {[%emt 0:01:36]} Rfc8 {[%emt 0:02:44]} 18. Ba3 {[%emt 0:00:45]} a5 {[%emt 0:00:30]} 19. Nc3 {[%emt 0:02:37]} Nb4 {[%emt 0:06:51]} 20. Qb6 {[%emt 0:03:44]} Rcb8 {[%emt 0:00:40]} 21. Qc5 {[%emt 0:00:09]} Rc8 {[%emt 0:00:24]} 22. Qb6 {[%emt 0:00:01]} Ra6 {[%emt 0:01:42]} 23. Qb5 {[%emt 0:00:52]} Qxb5 {[%emt 0:00:36]} 24. axb5 {[%emt 0:00:30]} Rb6 {[%emt 0:00:16]} 25. Rb1 {[%emt 0:02:19]} Bxc3 {[%emt 0:00:43]} 26. dxc3 {[%emt 0:00:02]} Rxc3 {[%emt 0:00:00]} 27. Bxb4 {[%emt 0:00:01]} Rxb5 {[%emt 0:02:27]} 28. Bxc3 {[%emt 0:00:48]} Rxb1+ {[%emt 0:00:02]} 29. Bf1 {[%emt 0:00:30]} a4 {[%emt 0:00:08]} 30. Nd2 {[%emt 0:03:03]} Rc1 {[%emt 0:00:12]} 31. Bf6 {[%emt 0:00:07]} Nc6 {[%emt 0:00:26]} 32. Kg2 {[%emt 0:00:58]} Na5 {[%emt 0:00:29]} 33. Bb5 {[%emt 0:05:42]} a3 {[%emt 0:00:38]} 34. Ba4 {[%emt 0:00:01]} Nc4 {[%emt 0:01:46]} 35. Nb3 {[%emt 0:00:51]} Rb1 {[%emt 0:00:02]} 36. Na1 {[%emt 0:00:56]} Nb2 {[%emt 0:00:28]} 37. Nc2 {[%emt 0:02:28]} Nxa4 {[%emt 0:00:08]} 38. Nxa3 {[%emt 0:00:00]} Rb6 {[%emt 0:01:15]} 39. Bd4 {[%emt 0:00:45]} Rb7 {[%emt 0:00:09]} 40. Nc2 {[%emt 0:01:17]} Nb2 {[%emt 0:00:41]} 41. Ne1 {[%emt 0:00:19]} f5 {[%emt 0:00:45]} 42. h4 {[%emt 0:01:04]} Kf7 {[%emt 0:00:18]} 43. Kf3 {[%emt 0:00:22]} Ke6 {[%emt 0:00:39]} 44. Kf4 {[%emt 0:00:29]} Rb3 {[%emt 0:00:52]} 45. Kg5 {[%emt 0:00:08]} Nd3 {[%emt 0:00:06]} 46. Nxd3 {[%emt 0:00:50]} Rxd3 {[%emt 0:00:02]} 47. Kh6 {[%emt 0:00:31]} Rd2 {[%emt 0:00:09]} 48. Kxh7 {[%emt 0:00:22]} Rxf2 {[%emt 0:00:04]} 49. Kxg6 {[%emt 0:00:59]} Rg2 {[%emt 0:00:10]} 50. h5 {[%emt 0:00:22]} Rxg3+ {[%emt 0:00:04]} 51. Kh7 {[%emt 0:00:00]} Kf7 {[%emt 0:00:45]} 52. Kh6 {[%emt 0:00:48]} Rg4 {[%emt 0:00:57]} 53. Be5 {[%emt 0:00:31]} Re4 {[%emt 0:00:28]} 54. Bf4 {[%emt 0:00:31]} Rxf4 {[%emt 0:01:02]} 0-1

[Event "5th Baskent University Open 2022"]
[Site "Ankara"]
[Date "2022.07.04"]
[Round "4.8"]
[White "Dedebas, Emre Emin"]
[Black "Yildirim, Ibrahim Halil"]
[Result "1-0"]
[ECO "A11"]
[WhiteElo "2321"]
[BlackElo "2106"]
[Annotator "TA"]
[PlyCount "71"]
[EventDate "2022.07.02"]
[EventType "swiss"]
[EventCountry "TUR"]
[SourceTitle "playchess.com"]
[Source "ChessBase"]
[SourceQuality "1"]
[TimeControl "5400+30"]

{[%evp 11,71,14,6,9,12,7,25,18,22,22,29,23,18,6,12,0,0,0,0,0,0,0,0,3,12,8,4,0,0,0,22,14,16,10,11,0,20,17,23,24,14,11,16,10,27,0,0,-11,24,17,24,21,25,-245,-258,-271,-259,-262,150,111,549,524]} 1. Nf3 {[%emt 0:08:00]} d5 {[%emt 0:01:00]} 2. g3 {[%emt 0:00:30]} Nf6 {[%emt 0:00:30]} 3. Bg2 {[%emt 0:00:00]} c6 {[%emt 0:00:30]} 4. c4 {[%emt 0:00:00]} Bg4 {[%emt 0:06:30]} 5. Ne5 {[%emt 0:00:30]} Bf5 {[%emt 0:02:30]} 6. cxd5 {[%emt 0:01:30]} cxd5 {[%emt 0:00:30]} 7. Qa4+ {[%emt 0:01:30] A11: English Opening: 1...c6.} Bd7 {[%emt 0:08:30]} 8. Nxd7 {[%emt 0:01:30]} Qxd7 {[%emt 0:00:30]} 9. Qxd7+ {[%emt 0:00:30] White has an edge.} Kxd7 {[%emt 0:02:30]} 10. Nc3 {[%emt 0:00:30]} e6 {[%emt 0:00:30]} 11. d3 {[%emt 0:00:30]} Nc6 {[%emt 0:02:30]} 12. Bd2 {[%emt 0:02:30]} Rc8 {[%emt 0:14:30]} 13. Rc1 {[%emt 0:02:30] [#]} Be7 $146 {[%emt 0:02:30]} ({Predecessor:} 13... Nb4 14. a3 Nc6 15. e3 Na5 16. b4 Nb3 17. Rb1 Nxd2 18. Kxd2 Bd6 19. h3 h5 {½-½ (37) Rohan,A (2206)-Kunal,M (2367) Mumbai 2014}) 14. O-O {[%emt 0:01:30]} Rhd8 {[%emt 0:03:30]} 15. Rfd1 {[%emt 0:00:30]} Ke8 {[%emt 0:05:30]} 16. Kf1 {[%emt 0:01:30]} Nd7 {[%emt 0:02:30]} 17. f4 {[%emt 0:04:30]} Nc5 {[%emt 0:05:30]} 18. f5 {[%emt 0:12:30]} b6 {[%emt 0:11:30]} 19. fxe6 {[%emt 0:23:30]} fxe6 {[%emt 0:00:30]} 20. h4 {[%emt 0:00:30]} a5 {[%emt 0:00:30]} 21. Bh3 {[%emt 0:00:30]} Bf6 {[%emt 0:00:30]} 22. Be1 {[%emt 0:02:30]} Bd4 {[%emt 0:12:57]} 23. Bf2 {[%emt 0:04:30]} Bxf2 {[%emt 0:01:45]} 24. Kxf2 {[%emt 0:00:30]} d4 {[%emt 0:00:35] [#] Hoping for ...Ne5.} 25. Nb5 $1 {[%emt 0:01:30]} Nb4 {[%emt 0:01:48][%cal Oc5d3] ...Ncxd3+! is the strong threat.} 26. Rc4 {[%emt 0:05:30]} Ke7 {[%emt 0:07:41][%cal Oc5d3]} 27. Nxd4 {[%emt 0:07:30][%cal Oc4c5]} Nxa2 {[%emt 0:02:01]} (27... b5 $2 {[#]} 28. Rxc5 $1 {[%mdl 512]} (28. Nxb5 Ncxd3+ 29. Rxd3 Rxc4 $15) 28... Rxc5 29. Nxe6 $16) 28. Ke3 {[%emt 0:02:38]} Rf8 {[%emt 0:02:25]} 29. Nc2 {[%emt 0:07:59]} b5 {[%emt 0:01:17]} 30. Rg4 {[%emt 0:00:21]} g6 {[%emt 0:01:02]} 31. Nd4 {[%emt 0:03:20] Black must now prevent Ra1.} Nb4 {[%emt 0:00:39]} 32. Bg2 $2 {[%emt 0:01:23][%mdl 8192]} (32. Rg5 $11) 32... e5 $19 {[%emt 0:00:21]} 33. Nf3 {[%emt 0:01:36]} (33. Nxb5 $2 {leads to mate.} Nc2+ 34. Kd2 Nb3#) 33... Nd5+ {[%emt 0:00:58] Pair of Knights!} 34. Kf2 {[%emt 0:00:09]} Kd6 $2 {[%emt 0:00:26]} (34... Ne6 $19 {Strongly threatening ...Rc2.} 35. Re4 Nf6 36. Rxe5 Ng4+ 37. Ke1 Nxe5 38. Nxe5 Rc2) 35. d4 $16 {[%emt 0:00:59]} exd4 {[%emt 0:00:34][%mdl 8192]} (35... Ne6 $16) 36. Rgxd4 {[%emt 0:00:00] Weighted Error Value: White=0.15 (very precise) /Black=0.43} 1-0